bitfinex/quotes_BTCUSD_20240721
["timestamp","ask_amount","ask_price","bid_price","bid_amount"]
[1721584021980,0.01650579,67488.0,67487.0,0.27151472]
[1721584022644,0.16467979,67488.0,67487.0,0.27151472]
[1721584022846,0.01650579,67488.0,67487.0,0.27151472]
[1721584025180,0.01650579,67488.0,67487.0,0.27151471]
[1721584025599,0.01650579,67488.0,67487.0,0.148424]
[1721584025810,0.01650579,67488.0,67487.0,0.27151487]
[1721584026447,0.16467979,67488.0,67487.0,0.27151487]
[1721584027258,0.01650579,67488.0,67487.0,0.27151487]
[1721584027682,0.01650579,67488.0,67487.0,0.27151286]
[1721584028343,0.01650579,67488.0,67487.0,0.27151445]
[1721584030467,0.16467979,67488.0,67487.0,0.27151445]
[1721584031609,0.16467979,67488.0,67487.0,0.148424]
[1721584031814,0.46102779,67488.0,67487.0,0.27151504]
[1721584032019,0.75737579,67488.0,67487.0,0.27151504]
[1721584032229,0.75737579,67488.0,67487.0,0.19311504]
[1721584034290,0.79342434,67488.0,67487.0,0.12801504]
[1721584034508,1.08977234,67488.0,67487.0,0.12801504]
[1721584034713,1.33787234,67488.0,67487.0,0.004924]
[1721584035152,1.27267234,67488.0,67487.0,0.004924]
[1721584035712,1.27167234,67488.0,67487.0,0.000924]
[1721584036115,1.27267234,67488.0,67487.0,0.004924]
[1721584036311,1.27367234,67488.0,67487.0,0.004924]
[1721584036512,1.27167234,67488.0,67487.0,0.000924]
[1721584036913,1.18977234,67488.0,67487.0,0.000924]
[1721584037581,1.33044957,67488.0,67487.0,0.000924]
[1721584037932,1.33144957,67488.0,67487.0,0.004924]
[1721584038136,1.19077234,67488.0,67487.0,0.004924]
[1721584038938,1.18977234,67488.0,67487.0,0.000924]
[1721584039280,0.26467979,67488.0,67487.0,0.27362176]
[1721584039487,0.26867979,67488.0,67487.0,0.27362176]
[1721584039695,0.26867979,67488.0,67487.0,0.26962176]
[1721584039696,0.11550579,67488.0,67487.0,0.26962176]
[1721584040035,0.11950579,67488.0,67487.0,0.26962176]
[1721584040214,0.01950579,67488.0,67487.0,0.26962176]
[1721584040936,0.01550579,67488.0,67487.0,0.146524]
[1721584041143,0.01650579,67488.0,67487.0,0.42178974]
[1721584041340,0.01650579,67488.0,67487.0,0.27361374]
[1721584041568,0.01650579,67488.0,67487.0,0.26961374]
[1721584041767,0.01550579,67488.0,67487.0,0.26961374]
[1721584041967,0.01650579,67488.0,67487.0,0.27361374]
[1721584042509,0.01650579,67488.0,67487.0,0.26961374]
[1721584042750,0.01550579,67488.0,67487.0,0.26961374]
[1721584042953,0.08540579,67488.0,67487.0,0.27361374]
[1721584043157,0.56697634,67488.0,67487.0,0.19091374]
[1721584043362,0.86332434,67488.0,67487.0,0.19091374]
[1721584044366,0.86332434,67488.0,67487.0,0.19092455]
[1721584044811,0.86332434,67488.0,67487.0,0.19092462]
[1721584045002,0.86232434,67488.0,67487.0,0.18692462]
[1721584045362,0.86332434,67488.0,67487.0,0.19092462]
[1721584045863,0.86332434,67488.0,67487.0,0.18692462]
[1721584045864,0.86232434,67488.0,67487.0,0.18692462]
[1721584046020,0.86232434,67488.0,67487.0,0.19092462]
[1721584047308,0.86232434,67488.0,67487.0,0.067824]
[1721584047513,0.86232434,67488.0,67487.0,0.19092403]
[1721584050697,0.94162434,67488.0,67487.0,0.12802435]
[1721584051391,0.86232434,67488.0,67487.0,0.12802435]
[1721584052087,0.01734579,67488.0,67487.0,0.26872435]
[1721584053922,0.16551979,67488.0,67487.0,0.26871866]
[1721584054467,0.16551979,67488.0,67487.0,0.26871913]
[1721584055117,0.23441979,67488.0,67487.0,0.18921913]
[1721584056111,0.23441979,67488.0,67487.0,0.066124]
[1721584056306,0.23441979,67488.0,67487.0,0.18921881]
[1721584056508,0.23441979,67488.0,67487.0,0.066124]
[1721584056714,0.23441979,67488.0,67487.0,0.18921958]
[1721584059498,0.53076779,67488.0,67487.0,0.18921958]
[1721584059960,0.53076779,67488.0,67487.0,0.12801958]
[1721584059961,0.82711579,67488.0,67487.0,0.12801958]
[1721584060522,0.82711579,67488.0,67487.0,0.12802046]
[1721584061127,1.15951234,67488.0,67487.0,0.12802046]
[1721584061366,0.740947,67481.0,67480.0,0.00875622]
[1721584061545,0.740947,67481.0,67480.0,0.13187077]
[1721584061546,1.22134309,67481.0,67480.0,0.13187077]
[1721584061746,1.22134309,67481.0,67480.0,0.00875622]
[1721584061747,1.47385619,67481.0,67480.0,0.00875622]
[1721584061951,1.74752788,67481.0,67480.0,0.00875622]
[1721584062152,1.74752788,67481.0,67468.0,0.009207]
[1721584062153,1.333944,67469.0,67468.0,0.009207]
[1721584062389,1.60657895,67469.0,67468.0,0.009207]
[1721584062783,1.70657895,67469.0,67468.0,0.009207]
[1721584063041,1.86092852,67469.0,67468.0,0.009207]
[1721584063236,1.91092852,67469.0,67468.0,0.009207]
[1721584063459,2.21399792,67469.0,67468.0,0.009207]
[1721584063659,2.10383952,67469.0,67468.0,0.009207]
[1721584063875,1.36855795,67469.0,67468.0,0.009207]
[1721584064082,0.1,67469.0,67468.0,0.009207]
[1721584064281,0.32109342,67481.0,67468.0,0.009207]
[1721584064282,0.148207,67474.0,67468.0,0.009207]
[1721584064456,0.1,67473.0,67469.0,0.12312542]
[1721584064651,0.1,67473.0,67470.0,0.12591763]
[1721584064838,0.014,67469.0,67468.0,0.009207]
[1721584065038,0.023,67469.0,67468.0,0.13233126]
[1721584065296,0.009,67469.0,67468.0,0.13233126]
[1721584065440,0.14821,67472.0,67468.0,0.13233126]
[1721584065810,0.1,67471.0,67469.0,0.12312426]
[1721584065993,0.101,67473.0,67470.0,0.12312426]
[1721584066233,0.101,67473.0,67471.0,0.12312426]
[1721584066427,0.101,67473.0,67472.0,0.002794]
[1721584066732,0.101,67473.0,67472.0,0.12310943]
[1721584066888,0.00082166,67473.0,67472.0,0.12310943]
[1721584067094,0.10082166,67473.0,67472.0,0.12310943]
[1721584067709,0.1,67473.0,67472.0,0.12310943]
[1721584068126,0.28589562,67476.0,67472.0,0.12310943]
[1721584068301,0.28589562,67476.0,67473.0,0.12590343]
[1721584068508,0.28589562,67476.0,67474.0,0.12310943]
[1721584068750,0.28589562,67476.0,67475.0,0.12310943]
[1721584068966,0.148205,67474.0,67472.0,0.001]
[1721584069157,0.1,67473.0,67472.0,0.001]
[1721584069391,0.1,67473.0,67472.0,0.12311812]
[1721584069603,0.1,67473.0,67468.0,0.012001]
[1721584069604,0.1,67473.0,67468.0,0.009207]
[1721584069744,0.1,67473.0,67469.0,0.12591241]
[1721584069939,0.1,67473.0,67470.0,0.12311841]
[1721584070118,0.09964233,67473.0,67471.0,0.12591241]
[1721584070322,0.18689762,67476.0,67472.0,0.12311841]
[1721584070521,0.19089762,67476.0,67473.0,0.12591241]
[1721584070726,0.18689762,67476.0,67473.0,0.002794]
[1721584070934,0.148204,67475.0,67468.0,0.012001]
[1721584071139,0.148204,67475.0,67469.0,0.12311774]
[1721584071346,0.148204,67475.0,67470.0,0.12591174]
[1721584071556,0.148204,67475.0,67471.0,0.12311774]
[1721584071752,0.148204,67475.0,67472.0,0.12591174]
[1721584071980,0.148204,67475.0,67473.0,0.12311774]
[1721584072187,0.148204,67475.0,67468.0,0.012001]
[1721584072394,0.001,67473.0,67472.0,0.001]
[1721584072598,0.001,67473.0,67472.0,0.12411826]
[1721584072838,0.148204,67475.0,67468.0,0.009207]
[1721584073181,0.1,67474.0,67469.0,0.002794]
[1721584073298,0.1,67474.0,67470.0,0.12312417]
[1721584073496,0.1,67474.0,67473.0,0.001]
[1721584073702,0.248205,67474.0,67473.0,0.001]
[1721584074601,0.249205,67474.0,67473.0,0.001]
[1721584074774,0.249205,67474.0,67468.0,0.012001]
[1721584074775,0.248205,67474.0,67468.0,0.012001]
[1721584074990,0.148207,67473.0,67469.0,0.12411933]
[1721584075211,0.1,67472.0,67470.0,0.12591333]
[1721584075334,0.1,67472.0,67471.0,0.12311933]
[1721584075937,0.1,67472.0,67471.0,0.12311937]
[1721584076353,0.1,67472.0,67471.0,0.10761359]
[1721584076574,0.101,67472.0,67471.0,0.10861359]
[1721584077415,0.11650579,67472.0,67471.0,0.10861359]
[1721584077881,0.26471479,67472.0,67471.0,0.10861359]
[1721584079180,0.26471479,67472.0,67471.0,0.001]
[1721584079592,0.89535824,67472.0,67471.0,0.001]
[1721584079795,1.19177724,67472.0,67471.0,0.001]
[1721584080472,0.74108,67469.0,67468.0,0.009207]
[1721584080675,0.77921495,67469.0,67468.0,0.009207]
[1721584080867,1.07564695,67469.0,67468.0,0.009207]
[1721584081069,1.17564695,67469.0,67468.0,0.009207]
[1721584082723,1.17564695,67469.0,67468.0,0.010207]
[1721584082938,1.18464695,67469.0,67468.0,0.010207]
[1721584083085,1.18464695,67469.0,67468.0,0.009207]
[1721584083287,1.18464695,67469.0,67468.0,0.010207]
[1721584083288,1.17564695,67469.0,67468.0,0.010207]
[1721584084751,1.18464695,67469.0,67468.0,0.009207]
[1721584084954,1.17564695,67469.0,67468.0,0.009207]
[1721584085161,1.17564695,67469.0,67468.0,0.010207]
[1721584085162,1.19964695,67469.0,67468.0,0.010207]
[1721584085355,1.20364695,67469.0,67468.0,0.010207]
[1721584085567,1.20264695,67469.0,67468.0,0.009207]
[1721584085978,1.20264695,67469.0,67468.0,0.010207]
[1721584085979,1.70442852,67469.0,67468.0,0.010207]
[1721584086189,1.70042852,67469.0,67468.0,0.010207]
[1721584086384,1.71142852,67469.0,67468.0,0.009207]
[1721584086593,2.26072252,67469.0,67468.0,0.009207]
[1721584086822,2.40242252,67469.0,67468.0,0.009207]
[1721584087533,2.41049947,67469.0,67468.0,0.009207]
[1721584088016,2.40749947,67469.0,67468.0,0.009207]
[1721584088260,2.41749947,67469.0,67468.0,0.009207]
[1721584088513,2.40549947,67469.0,67468.0,0.009207]
[1721584088759,2.4590659,67469.0,67468.0,0.009207]
[1721584089009,2.4450659,67469.0,67468.0,0.009207]
[1721584089265,2.4600659,67469.0,67468.0,0.009207]
[1721584089523,2.4264159,67469.0,67468.0,0.009207]
[1721584089782,2.4234159,67469.0,67468.0,0.009207]
[1721584090282,2.57776547,67469.0,67468.0,0.009207]
[1721584090523,2.58776547,67469.0,67468.0,0.009207]
[1721584090997,2.1504569,67469.0,67468.0,0.009207]
[1721584091237,1.9934249,67469.0,67468.0,0.009207]
[1721584091471,1.9775239,67469.0,67468.0,0.009207]
[1721584092210,2.0275239,67469.0,67468.0,0.009207]
[1721584095400,1.9775239,67469.0,67468.0,0.009207]
[1721584096621,2.09504632,67469.0,67468.0,0.009207]
[1721584097634,2.14504632,67469.0,67468.0,0.009207]
[1721584100809,2.44147832,67469.0,67468.0,0.009207]
[1721584101279,2.33901032,67469.0,67468.0,0.009207]
[1721584101521,3.11035332,67469.0,67468.0,0.0004256]
[1721584103636,1.730447,67466.0,67465.0,0.009207]
[1721584103872,3.60363973,67466.0,67465.0,0.009207]
[1721584104297,3.45903573,67466.0,67465.0,0.009207]
[1721584104930,3.47903573,67466.0,67465.0,0.009207]
[1721584105238,3.47903573,67466.0,67455.0,1e-06]
[1721584105239,0.248244,67456.0,67455.0,1e-06]
[1721584105489,0.248244,67456.0,67451.0,0.00356326]
[1721584105490,0.841267,67452.0,67451.0,0.00356326]
[1721584105784,6.92688374,67452.0,67451.0,0.00356326]
[1721584105994,7.26189992,67452.0,67451.0,0.00356326]
[1721584106240,7.26189992,67452.0,67450.0,0.009207]
[1721584106241,1.434299,67451.0,67450.0,0.009207]
[1721584106488,7.25441726,67451.0,67450.0,0.009207]
[1721584107013,1.951153,67445.0,67444.0,1.0]
[1721584107253,2.99792036,67445.0,67444.0,1.0]
[1721584107491,2.99792036,67445.0,67431.0,0.4773]
[1721584107492,0.1,67441.0,67431.0,0.002]
[1721584107739,0.494892,67432.0,67431.0,0.002]
[1721584107966,1.69878353,67432.0,67431.0,0.002]
[1721584108237,1.69878353,67432.0,67421.0,0.002]
[1721584108238,0.791585,67423.0,67421.0,0.002]
[1721584108470,1.85614919,67423.0,67421.0,0.002]
[1721584108711,1.87914919,67423.0,67421.0,0.002]
[1721584108953,1.87914919,67423.0,67422.0,0.00712665]
[1721584109208,2.02891598,67423.0,67422.0,0.00712665]
[1721584109962,2.03391598,67423.0,67422.0,0.00712665]
[1721584110458,2.27493598,67423.0,67422.0,0.00712665]
[1721584110879,2.35633598,67423.0,67422.0,0.00712665]
[1721584111085,2.40633598,67423.0,67422.0,0.00712665]
[1721584111304,2.70296998,67423.0,67422.0,0.00712665]
[1721584111521,3.96246998,67423.0,67422.0,0.00712665]
[1721584111740,3.96246998,67423.0,67411.0,0.002]
[1721584111741,0.901197,67416.0,67411.0,0.002]
[1721584111964,1.88767791,67416.0,67411.0,0.002]
[1721584112175,7.38038964,67416.0,67411.0,0.002]
[1721584112390,7.38038964,67416.0,67415.0,0.0014355]
[1721584112391,7.33874291,67416.0,67415.0,0.0014355]
[1721584112607,7.26836048,67416.0,67415.0,0.0014355]
[1721584113092,1.29459,67412.0,67411.0,0.00045015]
[1721584113323,3.03344118,67412.0,67411.0,0.00045015]
[1721584113567,3.18779075,67412.0,67411.0,0.00045015]
[1721584113986,3.23779075,67412.0,67411.0,0.00045015]
[1721584114408,3.61587375,67412.0,67411.0,0.00045015]
[1721584114630,2.13776418,67412.0,67411.0,0.00045015]
[1721584114850,2.06948218,67412.0,67411.0,0.00045015]
[1721584115063,2.01948218,67412.0,67411.0,0.00045015]
[1721584115691,2.04348218,67412.0,67411.0,0.00045015]
[1721584115915,2.12948218,67412.0,67411.0,0.00045015]
[1721584116121,2.28383175,67412.0,67411.0,0.00045015]
[1721584116332,2.24783175,67412.0,67411.0,0.00045015]
[1721584116583,2.29783175,67412.0,67411.0,0.00045015]
[1721584116758,2.24783175,67412.0,67411.0,0.00045015]
[1721584116962,2.23383175,67412.0,67411.0,0.00045015]
[1721584117174,1.47177118,67412.0,67411.0,0.00045015]
[1721584117397,1.38577118,67412.0,67411.0,0.00045015]
[1721584117620,1.22957118,67412.0,67411.0,0.00045015]
[1721584117854,0.82288818,67412.0,67411.0,0.00045015]
[1721584118070,0.83688818,67412.0,67411.0,0.00045015]
[1721584118726,0.82288818,67412.0,67411.0,0.00045015]
[1721584118999,0.81888818,67412.0,67411.0,0.00045015]
[1721584119196,0.81888818,67412.0,67411.0,0.12370086]
[1721584119197,0.30252218,67412.0,67411.0,0.12370086]
[1721584119405,0.61320518,67412.0,67411.0,0.12369318]
[1721584119575,0.59920518,67412.0,67411.0,0.12369318]
[1721584119771,0.30252218,67412.0,67411.0,0.12369318]
[1721584120002,0.05818118,67412.0,67411.0,0.20479318]
[1721584120201,0.48920518,67412.0,67411.0,0.20479318]
[1721584120466,0.78588818,67412.0,67411.0,0.20479318]
[1721584120666,0.79088818,67412.0,67411.0,0.20479318]
[1721584120871,0.04918118,67412.0,67411.0,0.20479318]
[1721584121099,0.04918118,67412.0,67411.0,0.41763618]
[1721584121566,0.00700001,67412.0,67411.0,0.14605015]
[1721584121771,0.00700001,67412.0,67411.0,0.50610916]
[1721584121975,1e-08,67412.0,67411.0,0.50611618]
[1721584122203,1e-08,67412.0,67411.0,0.45411787]
[1721584122411,0.01550918,67414.0,67411.0,0.45411787]
[1721584122632,0.01550918,67414.0,67413.0,0.05199795]
[1721584122839,0.01550918,67414.0,67413.0,0.12322709]
[1721584123054,0.16384618,67414.0,67413.0,0.12322709]
[1721584123288,0.46052018,67414.0,67413.0,0.12322709]
[1721584123550,1.17686818,67414.0,67413.0,0.12322709]
[1721584123968,1.17786818,67414.0,67413.0,0.12322709]
[1721584124625,1.93435718,67414.0,67413.0,0.12322709]
[1721584124859,1.03839,67412.0,67411.0,0.00045015]
[1721584125077,1.929769,67412.0,67411.0,0.12370683]
[1721584125292,1.954775,67412.0,67411.0,0.12370683]
[1721584125525,2.330858,67412.0,67411.0,0.12370683]
[1721584126186,2.380858,67412.0,67411.0,0.12370683]
[1721584126402,2.394858,67412.0,67411.0,0.12370683]
[1721584126627,2.380858,67412.0,67411.0,0.00045015]
[1721584126844,2.394858,67412.0,67411.0,0.00045015]
[1721584127068,2.54920757,67412.0,67411.0,0.00045015]
[1721584127287,2.5768543,67412.0,67411.0,0.00045015]
[1721584127502,2.53520757,67412.0,67411.0,0.00045015]
[1721584127738,2.5768543,67412.0,67411.0,0.00045015]
[1721584127956,2.5838543,67412.0,67411.0,0.00045015]
[1721584128168,2.54220757,67412.0,67411.0,0.00045015]
[1721584128389,2.83189057,67412.0,67411.0,0.00045015]
[1721584128608,2.8735373,67412.0,67411.0,0.00045015]
[1721584128828,2.9375373,67412.0,67411.0,0.00045015]
[1721584129048,2.9235373,67412.0,67411.0,0.00045015]
[1721584129257,2.89589057,67412.0,67411.0,0.00045015]
[1721584129503,2.90989057,67412.0,67411.0,0.00045015]
[1721584129689,2.93596064,67412.0,67411.0,0.00045015]
[1721584129951,2.6048543,67412.0,67411.0,0.00045015]
[1721584130161,2.6048543,67412.0,67411.0,0.12372001]
[1721584130162,2.56320757,67412.0,67411.0,0.12372001]
[1721584130379,2.56320757,67412.0,67411.0,0.00045015]
[1721584130613,2.54920757,67412.0,67411.0,0.12371989]
[1721584131016,2.56320757,67412.0,67411.0,0.00045015]
[1721584131230,2.56320757,67412.0,67411.0,0.12371988]
[1721584131443,2.54920757,67412.0,67411.0,0.12371988]
[1721584131902,2.59920757,67412.0,67411.0,0.12371988]
[1721584132126,1.088495,67405.0,67404.0,0.009218]
[1721584132348,1.549226,67405.0,67404.0,0.009218]
[1721584133712,1.705426,67405.0,67404.0,0.009218]
[1721584133975,2.052139,67405.0,67404.0,0.009218]
[1721584135172,2.064139,67405.0,67404.0,0.009218]
[1721584135452,2.16848857,67405.0,67404.0,0.009218]
[1721584135667,2.16848857,67405.0,67404.0,0.24615036]
[1721584135946,2.17248857,67405.0,67404.0,0.24615036]
[1721584136367,2.17248857,67405.0,67404.0,0.009218]
[1721584136578,2.18799775,67405.0,67404.0,0.009218]
[1721584136796,2.18799775,67405.0,67404.0,0.19413134]
[1721584136797,2.23799775,67405.0,67404.0,0.19413134]
[1721584137427,2.23799775,67405.0,67404.0,0.2461509]
[1721584137655,2.23799775,67405.0,67404.0,0.16834037]
[1721584137868,1.294713,67404.0,67403.0,0.06124028]
[1721584138085,4.38613279,67404.0,67403.0,0.009218]
[1721584139155,4.38913279,67404.0,67403.0,0.009218]
[1721584139395,4.38864979,67404.0,67403.0,0.009218]
[1721584140174,4.29720379,67404.0,67403.0,0.13250113]
[1721584140677,3.616842,67404.0,67403.0,0.009218]
[1721584140918,3.583842,67404.0,67403.0,0.13249971]
[1721584141127,3.63366346,67404.0,67403.0,0.13249971]
[1721584141357,3.58366346,67404.0,67403.0,0.13249971]
[1721584141591,3.74750641,67404.0,67403.0,0.13249971]
[1721584141856,3.69750641,67404.0,67403.0,0.13249971]
[1721584142093,4.25821841,67404.0,67403.0,0.13249971]
[1721584142329,4.30821841,67404.0,67403.0,0.13249971]
[1721584142557,4.25821841,67404.0,67403.0,0.13249971]
[1721584142780,4.06463841,67404.0,67403.0,0.13249971]
[1721584143012,4.11463841,67404.0,67403.0,0.13249805]
[1721584144444,3.88262941,67404.0,67403.0,0.13249805]
[1721584144685,3.70933641,67404.0,67403.0,0.13249805]
[1721584144925,3.00728646,67404.0,67403.0,0.13249805]
[1721584145175,3.00728646,67404.0,67403.0,0.13249484]
[1721584145176,2.96083946,67404.0,67403.0,0.13249484]
[1721584145417,3.01083946,67404.0,67403.0,0.13249484]
[1721584146142,3.01083946,67404.0,67403.0,0.13249774]
[1721584146358,3.16518903,67404.0,67403.0,0.13249774]
[1721584146575,3.16518903,67404.0,67403.0,0.009218]
[1721584146789,3.16518903,67404.0,67403.0,0.13103234]
[1721584148752,3.16518903,67404.0,67403.0,0.13103312]
[1721584149208,3.16518903,67404.0,67403.0,0.0077533]
[1721584149429,3.16518903,67404.0,67403.0,0.13103312]
[1721584149642,3.01083946,67404.0,67403.0,0.13103312]
[1721584150421,3.01083946,67404.0,67390.0,0.0622321]
[1721584150422,0.25602146,67392.0,67390.0,0.0622321]
[1721584150614,0.25602146,67392.0,67373.0,0.00017854]
[1721584150615,0.2,67395.0,67378.0,0.46584271]
[1721584150616,0.20602146,67389.0,67378.0,0.46584271]
[1721584150935,0.742037,67382.0,67378.0,0.46304871]
[1721584151263,1.18867346,67382.0,67381.0,0.18695585]
[1721584151470,1.38407346,67382.0,67381.0,0.002]
[1721584151681,1.548972,67382.0,67381.0,0.002]
[1721584151893,1.579072,67382.0,67381.0,0.002]
[1721584152099,1.518883,67382.0,67381.0,0.002]
[1721584152308,1.495883,67382.0,67381.0,0.002]
[1721584152526,1.518883,67382.0,67381.0,0.002]
[1721584153190,1.67323257,67382.0,67381.0,0.002]
[1721584153400,1.67423257,67382.0,67381.0,0.002]
[1721584154026,1.67323257,67382.0,67381.0,0.002]
[1721584154245,1.67423257,67382.0,67381.0,0.002]
[1721584154455,1.72423257,67382.0,67381.0,0.002]
[1721584154672,1.97104757,67382.0,67381.0,0.002]
[1721584155159,2.54994769,67382.0,67381.0,0.002]
[1721584155408,2.5583805,67382.0,67381.0,0.002]
[1721584155617,0.04982146,67364.0,67359.0,0.0663]
[1721584155830,0.890218,67372.0,67359.0,0.0663]
[1721584155831,1.28873479,67362.0,67359.0,0.0663]
[1721584156045,4.12400225,67362.0,67359.0,0.0663]
[1721584156254,4.12400225,67362.0,67358.0,0.03]
[1721584156255,4.30135182,67362.0,67358.0,0.03]
[1721584156466,4.50755182,67362.0,67358.0,0.03]
[1721584156673,4.45755182,67362.0,67358.0,0.03]
[1721584156855,4.80445482,67362.0,67358.0,0.03]
[1721584157109,1.59214346,67359.0,67358.0,0.00495635]
[1721584157318,1.59214346,67359.0,67347.0,0.009207]
[1721584157319,0.64982712,67348.0,67347.0,6e-07]
[1721584157564,0.64982712,67348.0,67335.0,0.075518]
[1721584157565,0.64982712,67348.0,67336.0,0.00507704]
[1721584157566,0.445519,67337.0,67336.0,0.00507704]
[1721584157782,1.039545,67337.0,67336.0,0.00507704]
[1721584157957,1.139545,67337.0,67336.0,0.00507704]
[1721584158729,1.410361,67337.0,67336.0,0.00507704]
[1721584158943,1.244035,67337.0,67336.0,0.00507704]
[1721584159150,1.423235,67337.0,67336.0,0.00507704]
[1721584159365,1.47141512,67337.0,67336.0,0.00507704]
[1721584159576,1.47941512,67337.0,67336.0,0.00507704]
[1721584160004,0.842532,67337.0,67336.0,0.00507704]
[1721584160217,0.855532,67337.0,67336.0,0.00507704]
[1721584160442,0.855532,67337.0,67336.0,0.19445219]
[1721584160443,0.261506,67337.0,67336.0,0.19445219]
[1721584160658,0.248506,67337.0,67336.0,0.19445219]
[1721584160874,0.253506,67337.0,67336.0,0.18945033]
[1721584161097,0.266506,67337.0,67336.0,0.18945033]
[1721584161393,0.113,67337.0,67336.0,0.27087021]
[1721584161607,0.261506,67337.0,67336.0,0.27086369]
[1721584162021,0.855532,67337.0,67336.0,0.26904381]
[1721584162229,0.855532,67337.0,67336.0,0.06607704]
[1721584162230,1.152545,67337.0,67336.0,0.06607704]
[1721584162443,1.177545,67337.0,67336.0,0.06607704]
[1721584163142,1.141545,67337.0,67336.0,0.06607704]
[1721584163354,1.141545,67337.0,67336.0,0.14749692]
[1721584163355,0.102,67337.0,67336.0,0.14749692]
[1721584163581,0.102,67337.0,67336.0,0.14567704]
[1721584163582,0.260506,67337.0,67336.0,0.14567704]
[1721584163798,0.545519,67337.0,67336.0,0.14567704]
[1721584164013,0.843532,67337.0,67336.0,0.14567704]
[1721584164224,1.1508815,67337.0,67336.0,7.704e-05]
[1721584164469,1.6139385,67337.0,67336.0,7.704e-05]
[1721584164694,1.6369385,67337.0,67336.0,7.704e-05]
[1721584164909,1.6409385,67337.0,67336.0,7.704e-05]
[1721584165122,1.310589,67337.0,67336.0,7.704e-05]
[1721584165337,2.25304412,67337.0,67336.0,7.704e-05]
[1721584165547,2.25604412,67337.0,67336.0,7.704e-05]
[1721584165774,2.55305712,67337.0,67336.0,7.704e-05]
[1721584166010,2.41039369,67337.0,67336.0,7.704e-05]
[1721584166580,2.75840669,67337.0,67336.0,7.704e-05]
[1721584166822,2.70840669,67337.0,67336.0,7.704e-05]
[1721584167083,2.76940669,67337.0,67336.0,7.704e-05]
[1721584167296,2.77291587,67337.0,67336.0,7.704e-05]
[1721584167539,2.78691587,67337.0,67336.0,7.704e-05]
[1721584167779,2.77991587,67337.0,67336.0,7.704e-05]
[1721584168022,2.79391587,67337.0,67336.0,7.704e-05]
[1721584168257,2.80791587,67337.0,67336.0,7.704e-05]
[1721584168748,1.29393912,67336.0,67335.0,0.00828028]
[1721584168984,2.98333691,67336.0,67335.0,0.00828028]
[1721584169206,3.28035391,67336.0,67335.0,0.00828028]
[1721584169437,3.21029091,67336.0,67335.0,0.00828028]
[1721584169699,1.663222,67336.0,67335.0,0.00828028]
[1721584169920,1.139559,67336.0,67335.0,0.15388028]
[1721584170167,0.842542,67336.0,67335.0,0.15388028]
[1721584170375,0.856542,67336.0,67335.0,0.15388028]
[1721584170484,1.139559,67336.0,67335.0,0.15388028]
[1721584170720,1.146559,67336.0,67335.0,0.15388028]
[1721584170972,1.160559,67336.0,67335.0,0.15388028]
[1721584171199,1.34393912,67336.0,67335.0,0.00828028]
[1721584171421,2.95508812,67336.0,67335.0,0.00828028]
[1721584171646,1.92395112,67336.0,67335.0,0.00828028]
[1721584171858,2.22096812,67336.0,67335.0,0.00828028]
[1721584172094,2.37531769,67336.0,67335.0,0.00828028]
[1721584172497,2.22096812,67336.0,67335.0,0.00828028]
[1721584172725,1.83375512,67336.0,67335.0,0.00828028]
[1721584172902,1.77846412,67336.0,67335.0,0.00828028]
[1721584173141,1.82846412,67336.0,67335.0,0.00828028]
[1721584173332,2.08948112,67336.0,67335.0,0.00828028]
[1721584173557,2.24383069,67336.0,67335.0,0.00828028]
[1721584173983,2.23883069,67336.0,67335.0,0.00828028]
[1721584174139,2.24283069,67336.0,67335.0,0.00828028]
[1721584174339,2.29283069,67336.0,67335.0,0.00828028]
[1721584174759,2.27483069,67336.0,67335.0,0.00828028]
[1721584175120,2.28583069,67336.0,67335.0,0.00828028]
[1721584175334,2.33583069,67336.0,67335.0,0.00828028]
[1721584175543,2.32483069,67336.0,67335.0,0.00828028]
[1721584176255,2.63584769,67336.0,67335.0,0.00828028]
[1721584176485,2.62184769,67336.0,67335.0,0.00828028]
[1721584176936,2.34983069,67336.0,67335.0,0.00828028]
[1721584177139,2.18148112,67336.0,67335.0,0.00621111]
[1721584177562,2.18448112,67336.0,67335.0,0.00621111]
[1721584178667,2.19848112,67336.0,67335.0,0.00621111]
[1721584178884,2.19848112,67336.0,67335.0,5.3e-07]
[1721584179108,2.32546269,67336.0,67335.0,5.3e-07]
[1721584179338,2.32546269,67336.0,67331.0,0.002]
[1721584179339,1.88807212,67332.0,67331.0,0.002]
[1721584179560,1.88807212,67332.0,67321.0,0.002]
[1721584179561,0.78129812,67322.0,67321.0,0.002]
[1721584179800,0.78129812,67322.0,67311.0,0.002]
[1721584179801,1.44428212,67314.0,67311.0,0.002]
[1721584180027,1.84139712,67314.0,67313.0,0.13265641]
[1721584180253,1.86439712,67314.0,67313.0,0.009218]
[1721584180688,3.19593169,67314.0,67313.0,0.009218]
[1721584180690,2.99158212,67314.0,67313.0,0.009218]
[1721584181138,3.48599712,67314.0,67313.0,0.009218]
[1721584181358,1.29431012,67312.0,67311.0,0.002]
[1721584181577,7.29308048,67312.0,67311.0,0.002]
[1721584182521,7.30858966,67312.0,67311.0,0.002]
[1721584182970,7.32258966,67312.0,67311.0,0.002]
[1721584183417,7.30858966,67312.0,67311.0,0.002]
[1721584183637,6.83742009,67312.0,67311.0,0.002]
[1721584184090,1.87289597,67312.0,67311.0,0.002]
[1721584184322,1.87289597,67312.0,67311.0,0.12545133]
[1721584184323,1.48341697,67312.0,67311.0,0.12545133]
[1721584184529,0.87231618,67312.0,67311.0,0.12545133]
[1721584184742,0.75831618,67312.0,67311.0,0.12545133]
[1721584185000,0.02950918,67312.0,67311.0,0.86827133]
[1721584185214,0.944,67319.0,67314.0,0.00181988]
[1721584185215,0.297095,67319.0,67314.0,0.00181988]
[1721584185439,0.148553,67316.0,67315.0,0.30852937]
[1721584185662,0.297106,67316.0,67314.0,0.00181988]
[1721584185882,0.297098,67318.0,67314.0,0.00181988]
[1721584185883,0.148555,67315.0,67314.0,0.00181988]
[1721584186099,0.16074112,67312.0,67311.0,0.1427]
[1721584186316,0.16074112,67312.0,67311.0,0.45123318]
[1721584186317,0.45786412,67312.0,67311.0,0.45123318]
[1721584186531,0.46486412,67312.0,67311.0,0.45123318]
[1721584187187,0.2581928,67328.0,67311.0,0.45123318]
[1721584187191,0.04366985,67390.0,67312.0,0.1407]
[1721584187192,0.05,67342.0,67312.0,0.1407]
[1721584187424,0.001,67319.0,67318.0,0.883442]
[1721584187670,0.297859,67336.0,67321.0,0.1407]
[1721584187671,0.00084,67336.0,67321.0,0.1407]
[1721584187895,0.148529,67327.0,67322.0,0.30853318]